lending/lending_fUSD_20260222
["ID","MTS","AMOUNT","RATE_DAILY","PERIOD"]
[406355791,1771789839467,-1500000.0,0.00017899,2]
[406355792,1771789839477,-1000.0,0.000179,2]
[406355793,1771789839488,-263.6441,0.000179,2]
[406355794,1771789839497,-200.0,0.000179,6]
[406355795,1771789839508,-449.28609275,0.000179,2]
[406355796,1771789839517,-151.0,0.00017997,2]
[406355797,1771789839527,-227.64592035,0.00018,2]
[406355798,1771789839536,-1837516.80136574,0.00018,2]
[406355799,1771789839549,-1000.000001,0.00018,2]
[406355800,1771789839562,-2465.20947077,0.00018,2]
[406355801,1771789839574,-707.82344134,0.00018,2]
[406355802,1771789839586,-2827.73399994,0.00018,2]
[406355804,1771789840023,-695.33,0.00018,2]
[406355806,1771789840078,-264.56333182,0.00018,2]
[406355807,1771789840291,-1067.42379196,0.00018,2]
[406355818,1771789842958,-20271.62786932,0.00018,2]
[406355837,1771789847666,-300.09243138,0.000175,2]
[406355838,1771789847675,-614173.55466,0.00018,2]
[406355839,1771789847684,-1195.28363858,0.00018,2]
[406355840,1771789847694,-1001.3868342,0.00018,2]
[406355841,1771789847705,-151.0,0.00018,2]
[406355842,1771789847715,-151.0,0.00018,2]
[406355843,1771789847727,-151.0,0.00018,2]
[406355844,1771789847736,-151.0,0.00018,2]
[406355845,1771789847746,-151.0,0.00018,2]
[406355846,1771789847755,-151.0,0.00018,2]
[406355847,1771789847765,-151.0,0.00018,2]
[406355848,1771789847775,-151.0,0.00018,2]
[406355849,1771789847787,-151.0,0.00018,2]
[406355850,1771789847797,-151.0,0.00018,2]
[406355851,1771789847808,-151.0,0.00018,2]
[406355852,1771789847818,-151.0,0.00018,2]
[406355853,1771789847830,-204.837741,0.00018,2]
[406355854,1771789847840,-204.837741,0.00018,2]
[406355855,1771789847855,-204.837741,0.00018,2]
[406355856,1771789847867,-204.837741,0.00018,2]
[406355857,1771789847876,-151.0,0.00018,2]
[406355858,1771789847885,-151.0,0.00018,2]
[406355859,1771789847894,-151.0,0.00018,2]
[406355860,1771789847903,-315.06112,0.00018,2]
[406355861,1771789847912,-315.06112,0.00018,2]
[406355862,1771789847922,-315.06112,0.00018,2]
[406355863,1771789847931,-315.06112,0.00018,2]
[406355864,1771789847939,-151.0,0.00018,2]
[406355865,1771789847948,-151.0,0.00018,2]
[406355866,1771789847958,-160.949988,0.00018,2]
[406355867,1771789847968,-458.522782,0.00018,2]
[406355868,1771789847981,-458.522782,0.00018,2]
[406355869,1771789847991,-458.522782,0.00018,2]
[406355870,1771789847999,-458.522782,0.00018,2]
[406355871,1771789848008,-151.0,0.00018,2]
[406355872,1771789848017,-151.0,0.00018,2]
[406355873,1771789848026,-151.0,0.00018,2]
[406355874,1771789848036,-758.392741,0.00018,2]
[406355875,1771789848045,-758.392741,0.00018,2]
[406355876,1771789848053,-758.392741,0.00018,2]
[406355877,1771789848062,-758.392741,0.00018,2]
[406355878,1771789848071,-150.0,0.000182,2]
[406355879,1771789848081,-1462.38,0.0001825,2]
[406355880,1771789848090,-150.0,0.00018265,2]
[406355881,1771789848099,-1680.0,0.00018336,2]
[406355882,1771789848108,-16451.19,0.00018806,2]
[406355883,1771789848117,-314.13088296,0.00019,2]
[406355884,1771789848126,-154.45264033,0.00019,2]
[406355885,1771789848135,-1462.38,0.0001908,2]
[406355886,1771789848144,-151.0,0.00019178,2]
[406355887,1771789848154,-151.0,0.00019178,2]
[406355888,1771789848163,-151.0,0.00019178,2]
[406355889,1771789848174,-151.0,0.00019178,2]
[406355890,1771789848183,-152.344841,0.00019178,2]
[406355891,1771789848193,-151.0,0.00019178,2]
[406355892,1771789848203,-1000.0,0.00019595,2]
[406355893,1771789848212,-160.0,0.00019636,2]
[406355894,1771789848222,-173.78509278,0.00019636,2]
[406355895,1771789848231,-565.37,0.00019813,2]
[406355896,1771789848241,-1062.34374872,0.00019884,5]
[406355897,1771789848251,-1062.34374872,0.00019884,5]
[406355898,1771789848260,-8036.3575399,0.00019885,2]
[406355899,1771789848270,-151.0,0.00019885,2]
[406355900,1771789848280,-151.0,0.00019885,2]
[406355901,1771789848289,-151.0,0.00019885,2]
[406355902,1771789848298,-151.0,0.00019885,2]
[406355903,1771789848307,-151.0,0.00019885,2]
[406355904,1771789848316,-192.41511,0.00019885,2]
[406355905,1771789848325,-151.0,0.00019885,2]
[406355906,1771789848334,-151.0,0.00019885,2]
[406355907,1771789848343,-151.0,0.00019885,2]
[406355908,1771789848353,-151.0,0.00019885,2]
[406355909,1771789848363,-151.0,0.00019885,2]
[406355910,1771789848372,-204.837741,0.00019885,2]
[406355911,1771789848381,-204.837741,0.00019885,2]
[406355912,1771789848390,-204.837741,0.00019885,2]
[406355913,1771789848400,-204.837741,0.00019885,2]
[406355914,1771789848409,-151.0,0.00019885,2]
[406355915,1771789848418,-151.0,0.00019885,2]
[406355916,1771789848427,-151.0,0.00019885,2]
[406355917,1771789848437,-151.0,0.00019885,2]
[406355918,1771789848447,-212.163245,0.00019885,2]
[406355919,1771789848456,-151.0,0.00019885,2]
[406355920,1771789848465,-151.0,0.00019885,2]
[406355921,1771789848475,-315.06112,0.00019885,2]
[406355922,1771789848484,-315.06112,0.00019885,2]
[406355923,1771789848493,-315.06112,0.00019885,2]
[406355924,1771789848502,-315.06112,0.00019885,2]
[406355925,1771789848511,-151.0,0.00019885,2]
[406355926,1771789848520,-151.0,0.00019885,2]
[406355927,1771789848529,-458.522782,0.00019885,2]
[406355928,1771789848538,-458.522782,0.00019885,2]
[406355929,1771789848547,-458.522782,0.00019885,2]
[406355930,1771789848556,-458.522782,0.00019885,2]
[406355931,1771789848564,-151.0,0.00019885,2]
[406355932,1771789848574,-151.0,0.00019885,2]
[406355933,1771789848582,-280.334024,0.00019885,2]
[406355934,1771789848592,-151.0,0.00019885,2]
[406355935,1771789848601,-758.392741,0.00019885,2]
[406355936,1771789848610,-758.392741,0.00019885,2]
[406355937,1771789848619,-758.392741,0.00019885,2]
[406355938,1771789848628,-758.392741,0.00019885,2]
[406355939,1771789848637,-151.0,0.00019897,2]
[406355940,1771789848647,-65518.15555313,0.000199,30]
[406355941,1771789848657,-4939.40217074,0.000199,3]
[406355942,1771789848666,-173.78509278,0.000199,30]
[406355943,1771789848675,-1462.38,0.00019909,2]
[406355944,1771789848684,-9150.70201334,0.0001995,15]
[406355945,1771789848693,-1891.954,0.00019985,2]
[406355946,1771789848702,-164.138,0.00019985,2]
[406355947,1771789848711,-2000.0,0.0002,2]
[406355948,1771789848719,-153.26383928,0.0002,2]
[406355949,1771789848728,-1001.14515122,0.0002,2]
[406355950,1771789848737,-2000.0,0.0002,2]
[406355951,1771789848745,-2000.0,0.0002,2]
[406355952,1771789848755,-2000.0,0.0002001,2]
[406355953,1771789848764,-2000.0,0.0002002,2]
[406355954,1771789848773,-2698.754019,0.0002003,2]
[406355955,1771789848783,-500.0,0.00020102,2]
[406355956,1771789848794,-500.0,0.00020102,2]
[406355957,1771789848803,-500.0,0.00020102,2]
[406355958,1771789848812,-500.0,0.00020102,2]
[406355959,1771789848822,-500.0,0.00020102,2]
[406355960,1771789848831,-500.0,0.00020102,2]
[406355961,1771789848840,-500.0,0.00020102,2]
[406355962,1771789848849,-500.0,0.00020102,2]
[406355963,1771789848860,-500.0,0.00020102,2]
[406355964,1771789848869,-300.0,0.00020102,2]
[406355965,1771789848878,-500.0,0.00020102,2]
[406355966,1771789848887,-300.0,0.00020102,2]
[406355967,1771789848895,-500.0,0.00020102,2]
[406355968,1771789848905,-300.0,0.00020102,2]
[406355969,1771789848914,-300.0,0.00020102,2]
[406355970,1771789848923,-300.0,0.00020102,2]
[406355971,1771789848932,-500.0,0.00020102,2]
[406355972,1771789848941,-300.0,0.00020102,2]
[406355973,1771789848950,-528.61421067,0.00020102,2]
[406355974,1771789848959,-300.0,0.00020102,2]
[406355975,1771789848968,-300.0,0.00020102,2]
[406355976,1771789848977,-300.0,0.00020102,2]
[406355977,1771789848986,-300.0,0.00020102,2]
[406355978,1771789848995,-162.51671768,0.00020102,2]
[406355979,1771789849004,-693.3919763,0.00020102,2]
[406355980,1771789849013,-500.0,0.00020102,2]
[406355981,1771789849023,-500.0,0.00020102,2]
[406355982,1771789849031,-500.0,0.00020102,2]
[406355983,1771789849041,-500.0,0.00020102,2]
[406355984,1771789849050,-500.0,0.00020102,2]
[406355985,1771789849059,-500.0,0.00020102,2]
[406355986,1771789849068,-500.0,0.00020102,2]
[406355987,1771789849077,-500.0,0.00020102,2]
[406355988,1771789849086,-500.0,0.00020102,2]
[406355989,1771789849095,-500.0,0.00020102,2]
[406355990,1771789849104,-500.0,0.00020102,2]
[406355991,1771789849113,-1200.0,0.00020133,2]
[406355992,1771789849122,-719.04747942,0.00020157,2]
[406355993,1771789849131,-745.65223616,0.00020212,2]
[406355994,1771789849140,-151.0,0.00020212,2]
[406355995,1771789849149,-151.0,0.00020212,2]
[406355996,1771789849158,-151.0,0.00020212,2]
[406355997,1771789849167,-758.392741,0.00020212,2]
[406355998,1771789849177,-758.392741,0.00020212,2]
[406355999,1771789849186,-758.392741,0.00020212,2]
[406356000,1771789849196,-758.392741,0.00020212,2]
[406356001,1771789849205,-773.2413689,0.00020267,2]
[406356002,1771789849214,-2000.0,0.000203,2]
[406356003,1771789849223,-801.85129955,0.00020322,2]
[406356004,1771789849232,-315.06112,0.00020322,2]
[406356005,1771789849242,-315.06112,0.00020322,2]
[406356006,1771789849251,-315.06112,0.00020322,2]
[406356007,1771789849260,-315.06112,0.00020322,2]
[406356008,1771789849269,-242.722816,0.00020322,2]
[406356009,1771789849279,-151.0,0.00020322,2]
[406356010,1771789849288,-458.522782,0.00020322,2]
[406356011,1771789849298,-458.522782,0.00020322,2]
[406356012,1771789849311,-458.522782,0.00020322,2]
[406356013,1771789849321,-458.522782,0.00020322,2]
[406356014,1771789849331,-151.0,0.00020335,2]
[406356015,1771789849341,-151.0,0.00020335,2]
[406356016,1771789849350,-151.0,0.00020335,2]
[406356017,1771789849361,-151.0,0.00020335,2]
[406356018,1771789849371,-151.0,0.00020335,2]
[406356019,1771789849381,-151.0,0.00020335,2]
[406356020,1771789849392,-151.0,0.00020335,2]
[406356021,1771789849402,-151.0,0.00020335,2]
[406356022,1771789849412,-151.0,0.00020335,2]
[406356023,1771789849421,-151.0,0.00020335,2]
[406356024,1771789849430,-204.837741,0.00020335,2]
[406356025,1771789849439,-204.837741,0.00020335,2]
[406356026,1771789849448,-204.837741,0.00020335,2]
[406356027,1771789849458,-204.837741,0.00020335,2]
[406356028,1771789849468,-151.0,0.00020335,2]
[406356029,1771789849478,-151.0,0.00020335,2]
[406356030,1771789849490,-240.82079334,0.00020335,2]
[406356031,1771789849501,-151.0,0.00020335,2]
[406356032,1771789849510,-211.647812,0.00020335,3]
[406356033,1771789849520,-151.0,0.00020335,2]
[406356034,1771789849529,-9094.0,0.00020335,2]
[406356035,1771789849539,-831.51979763,0.00020377,2]
[406356036,1771789849549,-862.28603014,0.00020432,2]
[406356037,1771789849560,-894.19061326,0.00020487,2]
[406356038,1771789849569,-173.78509278,0.000205,30]
[406356039,1771789849578,-927.27566595,0.00020542,2]
[406356040,1771789849588,-155.14,0.00020548,2]
[406356041,1771789849597,-961.58486559,0.00020597,2]
[406356042,1771789849607,-2000.0,0.000206,2]
[406356043,1771789849617,-997.16350561,0.00020652,2]
[406356044,1771789849626,-200.0,0.00020964,2]
[406356045,1771789849635,-37732.37,0.00021117,2]
[406356046,1771789849647,-160.9,0.00021119,2]
[406356047,1771789849658,-151.35,0.00021719,30]
[406356048,1771789849668,-5000.0,0.00021918,2]
[406356049,1771789849677,-151.0,0.00021997,2]
[406356050,1771789849687,-171.3,0.00022,2]
[406356051,1771789849697,-20868.05,0.00022,2]
[406356052,1771789849707,-565.37,0.00022014,2]
[406356053,1771789849717,-1000.0,0.00022044,2]
[406356054,1771789849727,-2000.0,0.000221,2]
[406356055,1771789849737,-606.94280945,0.00022218,2]
[406356056,1771789849747,-151.0,0.00022454,2]
[406356057,1771789849757,-236.576536,0.00022454,2]
[406356058,1771789849766,-151.0,0.00022454,2]
[406356059,1771789849775,-151.0,0.00022454,2]
[406356060,1771789849788,-151.0,0.00022454,2]
[406356061,1771789849797,-151.0,0.00022454,2]
[406356062,1771789849806,-151.0,0.00022454,2]
[406356063,1771789849816,-151.0,0.00022454,2]
[406356064,1771789849826,-204.837741,0.00022454,2]
[406356065,1771789849836,-204.837741,0.00022454,2]
[406356066,1771789849846,-204.837741,0.00022454,2]
[406356067,1771789849855,-204.837741,0.00022454,2]
[406356068,1771789849866,-151.0,0.00022454,2]
[406356069,1771789849875,-151.0,0.00022454,2]
[406356070,1771789849885,-151.0,0.00022454,2]
[406356071,1771789849894,-151.0,0.00022454,2]
[406356072,1771789849903,-458.522782,0.00022454,2]
[406356073,1771789849914,-458.522782,0.00022454,2]
[406356074,1771789849924,-458.522782,0.00022454,2]
[406356075,1771789849935,-458.522782,0.00022454,2]
[406356076,1771789849945,-151.0,0.00022454,2]
[406356077,1771789849954,-151.0,0.00022454,2]
[406356078,1771789849965,-265.06702,0.00022454,2]
[406356079,1771789849975,-758.392741,0.00022454,2]
[406356080,1771789849986,-758.392741,0.00022454,2]
[406356081,1771789849996,-758.392741,0.00022454,2]
[406356082,1771789850007,-758.392741,0.00022454,2]
[406356083,1771789850016,-150.0,0.00022864,5]
[406356084,1771789850026,-275.37004532,0.00022864,5]
[406356085,1771789850036,-1793.1537448,0.00022944,2]
[406356086,1771789850047,-160.0,0.00023,2]
[406356087,1771789850057,-4758.62000772,0.00023012,2]
[406356088,1771789850067,-151.0,0.00023027,2]
[406356089,1771789850077,-315.06112,0.00023027,2]
[406356090,1771789850086,-315.06112,0.00023027,2]
[406356091,1771789850096,-315.06112,0.00023027,2]
[406356092,1771789850105,-315.06112,0.00023027,2]
[406356093,1771789850115,-1062.34374872,0.00023042,10]
[406356094,1771789850124,-1062.34374872,0.00023042,10]
[406356095,1771789850134,-155.74,0.000231,7]
[406356096,1771789850143,-891.02831,0.0002325,2]
[406356097,1771789850152,-891.02831,0.0002325,2]
[406356098,1771789850162,-891.02831,0.0002325,2]
[406356099,1771789850171,-2000.0,0.000234,2]
[406356100,1771789850181,-2000.0,0.0002341,2]
[406356101,1771789850191,-3354.952367,0.0002342,2]
[406356102,1771789850200,-891.02831,0.00023482,2]
[406356103,1771789850210,-891.02831,0.00023482,2]
[406356104,1771789850219,-891.02831,0.00023482,2]
[406356105,1771789850228,-200.0,0.000235,2]
[406356106,1771789850238,-362.38,0.00023617,2]
[406356107,1771789850247,-400.1066822,0.00023627,2]
[406356108,1771789850257,-171.0,0.00023753,120]
[406356109,1771789850267,-1025.97804106,0.00024,2]
[406356110,1771789850277,-1240.61347426,0.00024,2]
[406356111,1771789850286,-321.29,0.0002403,2]
[406356112,1771789850296,-8126.640975,0.00024056,30]
[406356113,1771789850306,-423.83982989,0.0002421,2]
[406356114,1771789850315,-565.37,0.00024216,2]
[406356115,1771789850325,-180.0,0.00024467,9]
[406356116,1771789850335,-1000.0,0.00024493,2]
[406356117,1771789850483,-20868.05,0.000245,2]
[406356118,1771789850494,-1000.0,0.00024658,2]
[406356119,1771789850503,-507.65,0.00024658,2]
[406356120,1771789850513,-153.178362,0.00024658,2]
[406356121,1771789850523,-150.0,0.00024658,2]
[406356122,1771789850533,-324.652155,0.00024658,2]
[406356123,1771789850542,-324.652155,0.00024658,2]
[406356124,1771789850553,-324.652155,0.00024658,2]
[406356125,1771789850564,-324.652155,0.00024658,2]
[406356126,1771789850575,-324.652155,0.00024658,2]
[406356127,1771789850585,-324.652155,0.00024658,2]
[406356128,1771789850606,-324.652155,0.00024658,2]
[406356129,1771789850617,-324.652155,0.00024658,2]
[406356130,1771789850628,-324.652155,0.00024658,2]
[406356131,1771789850639,-324.652155,0.00024658,2]
[406356132,1771789850650,-324.652155,0.00024658,2]
[406356133,1771789850661,-324.652155,0.00024658,2]
[406356134,1771789850672,-324.652155,0.00024658,2]
[406356135,1771789850684,-324.652155,0.00024658,2]
[406356136,1771789850696,-324.652155,0.00024658,2]
[406356137,1771789850708,-324.652155,0.00024658,2]
[406356138,1771789850718,-174.672329,0.00024795,30]
[406356139,1771789850729,-1116.42972084,0.00025,2]
[406356140,1771789850740,-207.97918787,0.00025,2]
[406356141,1771789850751,-1788.88729396,0.00025,2]
[406356142,1771789850762,-540.0,0.00025,2]
[406356143,1771789850772,-612.28323019,0.00025,2]
[406356144,1771789850784,-3051.35296469,0.00025,2]
[406356145,1771789850796,-167.70034267,0.00025,2]
[406356146,1771789850807,-160.0,0.00025,30]
[406356147,1771789850817,-155.74,0.000252,7]
[406356148,1771789850829,-7100.50717043,0.00025401,120]
[406356149,1771789850840,-2194.86292334,0.00025401,120]
[406356150,1771789850850,-754.0,0.00025401,120]
[406356151,1771789850862,-263.93,0.00025663,2]
[406356152,1771789850873,-208.52,0.00025795,2]
[406356153,1771789850884,-171.3,0.0002588,7]
[406356154,1771789850895,-618.0,0.00025888,2]
[406356155,1771789850905,-1040.0,0.00025888,2]
[406356156,1771789850916,-1339.0,0.00025888,2]
[406356157,1771789850926,-1210.0,0.00025888,2]
[406356158,1771789850939,-5977.0,0.00025888,2]
[406356159,1771789850948,-964.071,0.00025888,2]
[406356160,1771789850958,-2454.0,0.00025888,2]
[406356161,1771789850968,-150.0,0.0002589,2]
[406356162,1771789850977,-602.33228251,0.0002599,2]
[406356163,1771789850986,-4534.00127051,0.00026,2]
[406356164,1771789850996,-217.00225735,0.00026,2]
[406356165,1771789851006,-237.08482495,0.000263,2]
[406356166,1771789851017,-151.0,0.00026397,7]
[406356167,1771789851026,-27544.86583785,0.000264,2]
[406356168,1771789851037,-151.0,0.000264,2]
[406356169,1771789851047,-151.0,0.000264,2]
[406356170,1771789851056,-214.274472,0.000264,2]
[406356171,1771789851066,-151.0,0.000264,2]
[406356172,1771789851076,-151.0,0.000264,2]
[406356173,1771789851086,-210.791272,0.000264,2]
[406356174,1771789851097,-204.837741,0.000264,2]
[406356175,1771789851107,-204.837741,0.000264,2]
[406356176,1771789851117,-204.837741,0.000264,2]
[406356177,1771789851127,-204.837747,0.000264,2]
[406356178,1771789851142,-151.0,0.000264,2]
[406356179,1771789851153,-151.0,0.000264,2]
[406356180,1771789851164,-151.0,0.000264,2]
[406356181,1771789851173,-151.0,0.000264,2]
[406356182,1771789851184,-458.522782,0.000264,2]
[406356183,1771789851194,-458.522782,0.000264,2]
[406356184,1771789851203,-458.522782,0.000264,2]
[406356185,1771789851212,-458.52278,0.000264,2]
[406356186,1771789851222,-151.0,0.000264,2]
[406356187,1771789851232,-151.0,0.000264,2]
[406356188,1771789851242,-324.652155,0.000264,2]
[406356189,1771789851253,-324.652155,0.000264,2]
[406356190,1771789851263,-324.652155,0.000264,2]
[406356191,1771789851274,-324.652154,0.000264,2]
[406356192,1771789851284,-758.392741,0.000264,2]
[406356193,1771789851294,-758.392741,0.000264,2]
[406356194,1771789851305,-758.392741,0.000264,2]
[406356195,1771789851316,-758.392736,0.000264,2]
[406356196,1771789851326,-565.37,0.00026417,120]
[406356197,1771789851336,-150.0,0.00026598,2]
[406356198,1771789851346,-2894.4222377,0.00026598,2]
[406356199,1771789851356,-606.94280945,0.00026739,2]
[406356200,1771789851367,-894.69,0.00026816,2]
[406356201,1771789851377,-20868.05,0.000269,2]
[406356202,1771789851386,-1000.0,0.00026943,2]
[406356203,1771789851397,-151.35,0.00026988,30]
[406356204,1771789851408,-250.0,0.00027,2]
[406356205,1771789851418,-1037.17620724,0.00027,2]
[406356206,1771789851430,-530.0,0.00027,2]
[406356207,1771789851441,-2000.0,0.00027,2]
[406356208,1771789851451,-2489.679493,0.0002701,2]
[406356209,1771789851461,-180.0,0.00027179,14]
[406356210,1771789851471,-150.0,0.00027185,2]
[406356211,1771789851480,-150.0,0.00027369,2]
[406356212,1771789851490,-4122.0987762,0.0002739,2]
[406356213,1771789851500,-8144.25827698,0.0002739,2]
[406356214,1771789851510,-151.0,0.0002739,2]
[406356215,1771789851520,-315.06112,0.0002739,2]
[406356216,1771789851529,-315.06112,0.0002739,2]
[406356217,1771789851539,-315.06112,0.0002739,2]
[406356218,1771789851549,-315.061129,0.0002739,2]
[406356219,1771789851560,-151.0,0.00027394,7]
[406356220,1771789851570,-1450.55,0.00027397,2]
[406356221,1771789851580,-300.0,0.00027397,2]
[406356222,1771789851591,-507.65,0.00027397,2]
[406356223,1771789851601,-1000.0,0.00027397,20]
[406356224,1771789851611,-151.0,0.00027397,2]
[406356225,1771789851620,-151.0,0.00027397,2]
[406356226,1771789851631,-151.0,0.00027397,2]
[406356227,1771789851643,-151.0,0.00027397,2]
[406356228,1771789851653,-520.92,0.00027397,2]
[406356229,1771789851664,-1419.682783,0.00027397,2]
[406356230,1771789851674,-1419.682783,0.00027397,2]
[406356231,1771789851688,-1419.682783,0.00027397,2]
[406356232,1771789851699,-1419.682783,0.00027397,2]
[406356233,1771789851708,-1419.682783,0.00027397,2]
[406356234,1771789851718,-1419.682783,0.00027397,2]
[406356235,1771789851727,-1419.682783,0.00027397,2]
[406356236,1771789851736,-1419.682783,0.00027397,2]
[406356237,1771789851746,-1419.682783,0.00027397,2]
[406356238,1771789851755,-1419.682783,0.00027397,2]
[406356239,1771789851765,-1419.682783,0.00027397,2]
[406356240,1771789851775,-1419.682783,0.00027397,2]
[406356241,1771789851788,-1419.682783,0.00027397,2]
[406356242,1771789851798,-1419.682783,0.00027397,2]
[406356243,1771789851808,-1419.682783,0.00027397,2]
[406356244,1771789851817,-1419.682783,0.00027397,2]
[406356245,1771789851827,-1419.682783,0.00027397,2]
[406356246,1771789851838,-1419.682783,0.00027397,2]
[406356247,1771789851847,-1419.682783,0.00027397,2]
[406356248,1771789851857,-1419.682776,0.00027397,2]
[406356249,1771789851867,-995.23553,0.00027397,2]
[406356250,1771789851878,-995.23553,0.00027397,2]
[406356251,1771789851888,-995.23553,0.00027397,2]
[406356252,1771789851899,-995.23553,0.00027397,2]
[406356253,1771789851909,-995.23553,0.00027397,2]
[406356254,1771789851922,-995.23553,0.00027397,2]
[406356255,1771789851932,-995.23553,0.00027397,2]
[406356256,1771789851943,-995.23553,0.00027397,2]
[406356257,1771789851953,-995.23553,0.00027397,2]
[406356258,1771789851962,-995.23553,0.00027397,2]
[406356259,1771789851973,-995.23553,0.00027397,2]
[406356260,1771789851985,-995.23553,0.00027397,2]
[406356261,1771789851995,-995.23553,0.00027397,2]
[406356262,1771789852005,-995.23553,0.00027397,2]
[406356263,1771789852015,-995.23553,0.00027397,2]
[406356264,1771789852026,-995.23553,0.00027397,2]
[406356265,1771789852036,-995.23553,0.00027397,2]
[406356266,1771789852047,-995.23553,0.00027397,2]
[406356267,1771789852057,-995.23553,0.00027397,2]
[406356268,1771789852068,-995.235524,0.00027397,2]
[406356269,1771789852079,-281.176674,0.00027397,2]
[406356270,1771789852090,-281.176674,0.00027397,2]
[406356271,1771789852101,-281.176674,0.00027397,2]
[406356272,1771789852111,-281.176674,0.00027397,2]
[406356273,1771789852122,-281.176674,0.00027397,2]
[406356274,1771789852132,-281.176674,0.00027397,2]
[406356275,1771789852142,-281.176674,0.00027397,2]
[406356276,1771789852152,-281.176674,0.00027397,2]
[406356277,1771789852161,-281.176674,0.00027397,2]
[406356278,1771789852171,-281.176674,0.00027397,2]
[406356279,1771789852180,-281.176674,0.00027397,2]
[406356280,1771789852190,-281.176674,0.00027397,2]
[406356281,1771789852200,-281.176674,0.00027397,2]
[406356282,1771789852210,-281.176674,0.00027397,2]
[406356283,1771789852219,-281.176674,0.00027397,2]
[406356284,1771789852229,-281.176674,0.00027397,2]
[406356285,1771789852242,-281.176674,0.00027397,2]
[406356286,1771789852252,-281.176674,0.00027397,2]
[406356287,1771789852263,-281.176674,0.00027397,2]
[406356288,1771789852273,-281.176666,0.00027397,2]
[406356289,1771789852283,-928.44,0.000275,10]
[406356290,1771789852293,-201.82726027,0.000275,2]
[406356291,1771789852302,-551.34617508,0.000275,2]
[406356292,1771789852312,-155.74,0.000275,7]
[406356293,1771789852322,-51015.27399493,0.00028,2]
[406356294,1771789852331,-160.0,0.00028,2]
[406356295,1771789852343,-150.0,0.00028544,2]
[406356296,1771789852352,-306.7551253,0.00028561,2]
[406356297,1771789852362,-500.0,0.00028695,2]
[406356298,1771789852372,-500.0,0.00028695,2]
[406356299,1771789852381,-500.0,0.00028695,2]
[406356300,1771789852391,-500.0,0.00028695,2]
[406356301,1771789852401,-500.0,0.00028695,2]
[406356302,1771789852411,-495.77856808,0.00028767,2]
[406356303,1771789852421,-163.45,0.00028854,2]
[406356304,1771789852431,-618.0,0.00028888,2]
[406356305,1771789852441,-372.0,0.00028888,2]
[406356306,1771789852452,-1337.0,0.00028888,2]
[406356307,1771789852462,-1210.0,0.00028888,2]
[406356308,1771789852472,-5977.0,0.00028888,2]
[406356309,1771789852482,-920.0,0.00028888,2]
[406356310,1771789852492,-2454.0,0.00028888,2]
[406356311,1771789852502,-503.9138085,0.00029,2]
[406356312,1771789852513,-2000.0,0.00029,2]
[406356313,1771789852523,-1000.0,0.00029392,2]
[406356314,1771789852533,-171.3,0.0002976,30]
[406356315,1771789852543,-180.0,0.00029891,22]
[406356316,1771789852554,-151.0,0.00029896,7]
[406356317,1771789852564,-79180.15058256,0.000299,2]
[406356318,1771789852574,-200.0,0.000299,10]
[406356319,1771789852585,-20868.05,0.000299,2]
[406356320,1771789852595,-150.0,0.00029971,2]